bitfinex/quotes_SOLUSD_20260201
["timestamp","ask_amount","ask_price","bid_price","bid_amount"]
[1769956394107,2.96147507,103.45,103.4,13.42393874]
[1769956394612,2.96147507,103.45,103.41,13.4233583]
[1769956394811,12.91247104,103.46,103.42,3.75334522]
[1769956395321,12.91247104,103.46,103.41,13.4233583]
[1769956396112,2.96244471,103.45,103.37,3.75334522]
[1769956396318,2.96244471,103.42,103.38,3.75334522]
[1769956396700,12.63206925,103.42,103.38,13.42589116]
[1769956397319,12.63206925,103.42,103.38,3.75334522]
[1769956397917,12.63206925,103.42,103.38,13.426307]
[1769956398214,12.63206925,103.42,103.38,3.75334522]
[1769956398413,36.80534327,103.42,103.38,3.75334522]
[1769956398808,36.80534327,103.42,103.37,9.67352391]
[1769956399012,36.80534327,103.42,103.36,13.4281149]
[1769956399399,2.96338132,103.41,103.36,13.4281149]
[1769956400800,36.81311751,103.4,103.36,3.75334522]
[1769956401019,2.96398793,103.39,103.3,3.75334522]
[1769956401208,2.96398793,103.38,103.3,13.43351278]
[1769956401405,2.96398793,103.37,103.3,13.43351278]
[1769956401720,2.96398793,103.37,103.31,13.43288316]
[1769956401924,2.96398793,103.37,103.32,9.67860267]
[1769956402104,2.96398793,103.37,103.31,13.4326027]
[1769956402621,0.28432314,103.36,103.31,13.4326027]
[1769956402840,12.63858226,103.37,103.32,13.43178057]
[1769956403397,12.63858226,103.37,103.32,3.75334522]
[1769956403619,2.96458069,103.36,103.3,13.43370498]
[1769956403926,2.96458069,103.36,103.31,3.75334522]
[1769956404421,0.28432314,103.35,103.29,3.75334522]
[1769956404624,0.28432314,103.35,103.29,13.43429061]
[1769956404625,3.24919511,103.35,103.29,13.43429061]
[1769956404829,3.24919511,103.35,103.29,3.75334522]
[1769956405004,9.67679504,103.34,103.3,13.43388733]
[1769956405203,12.92534745,103.35,103.3,13.43388733]
[1769956406503,2.96544453,103.37,103.31,3.75334522]
[1769956407419,9.6749226,103.36,103.31,13.43224911]
[1769956407931,2.96544453,103.37,103.31,13.43224911]
[1769956407932,12.63988834,103.37,103.32,3.75334522]
[1769956408103,9.67444381,103.37,103.32,3.75334522]
[1769956409208,36.82365711,103.38,103.33,3.75334522]
[1769956409404,2.96627896,103.37,103.31,13.43255737]
[1769956409609,2.96627896,103.37,103.32,3.75334522]
[1769956409819,2.96627896,103.37,103.29,3.75334522]
[1769956410324,2.96655073,103.34,103.29,3.75334522]
[1769956410721,2.96655073,103.34,103.29,13.43417733]
[1769956410915,0.28432314,103.35,103.31,3.75334522]
[1769956411115,12.64261166,103.36,103.31,13.4328312]
[1769956411305,12.92558561,103.37,103.32,3.75334522]
[1769956411511,36.82622909,103.37,103.32,3.75334522]
[1769956411718,9.67444308,103.37,103.32,3.75334522]
[1769956412019,12.64060745,103.38,103.32,3.75334522]
[1769956413228,12.64060745,103.38,103.33,13.43107675]
[1769956413607,2.96734747,103.4,103.34,3.75334522]
[1769956415221,12.63875246,103.4,103.35,9.67585873]
[1769956415407,12.63875246,103.4,103.35,13.42920395]
[1769956415719,12.63875246,103.4,103.35,12.42920395]
[1769956416839,9.67140499,103.4,103.36,3.75334522]
[1769956417822,12.64026545,103.4,103.36,3.75334522]
[1769956418316,36.81821515,103.4,103.34,9.6762282]
[1769956418523,2.96886046,103.39,103.34,3.72869298]
[1769956418722,2.96886046,103.39,103.32,27.92357335]
[1769956418923,33.84935469,103.4,103.35,13.40401722]
[1769956419122,36.81845727,103.4,103.35,13.40401722]
[1769956419628,36.81845727,103.4,103.35,3.72869298]
[1769956420013,2.96934193,103.39,103.33,13.40592562]
[1769956421923,37.10981362,103.38,103.33,13.40592562]
[1769956422128,12.92718642,103.38,103.34,3.72869298]
[1769956422638,62.59789927,103.38,103.15,5.05221242]
[1769956422812,4.55959399,103.17,103.09,4.08596733]
[1769956423017,219.42831108,103.26,103.09,4.08596733]
[1769956423227,1.50168476,103.23,103.1,26.88]
[1769956423531,1.7860079,103.22,103.1,26.88]
[1769956423730,1.5019133,103.2,103.1,109.32422888]
[1769956423920,9.69180073,103.18,103.1,60.82762365]
[1769956424112,9.97539121,103.19,103.1,60.82762365]
[1769956424318,35.70468421,103.19,103.1,60.82762365]
[1769956424523,39.97995506,103.19,103.1,60.82762365]
[1769956424832,0.28432314,103.16,103.1,60.82762365]
[1769956425219,1.78668566,103.18,103.11,3.75588662]
[1769956426133,9.69274013,103.17,103.12,13.45332649]
[1769956426825,170.05528047,103.18,103.12,13.45332649]
[1769956427128,168.55291795,103.18,103.13,3.75588662]
[1769956427317,168.55291795,103.18,103.14,3.75588662]
[1769956427933,112.5415821,103.18,103.14,3.75588662]
[1769956428237,112.5415821,103.18,103.14,30.65588662]
[1769956428418,4.06100726,103.17,103.14,26.9]
[1769956430112,0.28432314,103.17,103.14,36.59553369]
[1769956430618,4.3453304,103.17,103.12,26.9]
[1769956430818,4.3453304,103.17,103.12,40.35273368]
[1769956431228,4.3453304,103.17,103.13,9.69635077]
[1769956431739,4.3453304,103.17,103.12,40.35305593]
[1769956432244,112.5415821,103.18,103.13,3.75588662]
[1769956434144,112.5415821,103.18,103.14,13.45144605]
[1769956434927,116.60258936,103.18,103.13,9.69623053]
[1769956435247,73.32651241,103.17,103.13,13.45211715]
[1769956435945,77.38751967,103.17,103.13,13.45211715]
[1769956436149,68.65641241,103.16,103.13,9.69623053]
[1769956436347,68.65641241,103.16,103.12,26.9]
[1769956436648,68.65641241,103.16,103.12,30.65588662]
[1769956437441,68.65641241,103.16,103.13,9.69623053]
[1769956437641,68.65641241,103.16,103.13,37.69336605]
[1769956437841,18.95745624,103.16,103.13,37.69336605]
[1769956438028,13.75207069,103.19,103.13,37.69336605]
[1769956438227,4.06100726,103.18,103.13,27.99713552]
[1769956439233,4.06100726,103.18,103.13,37.69336605]
[1769956440736,4.06100726,103.18,103.14,3.75588662]
[1769956440937,0.28432314,103.19,103.14,3.75588662]
[1769956441446,0.28432314,103.17,103.14,3.75588662]
[1769956441744,0.28432314,103.17,103.13,33.93747943]
[1769956441745,0.28432314,103.17,103.13,37.69336605]
[1769956442747,4.06100726,103.18,103.13,37.69336605]
[1769956443747,9.69013458,103.2,103.14,3.75588662]
[1769956444049,13.75114184,103.2,103.14,3.75588662]
[1769956444250,4.06100726,103.19,103.14,3.75588662]
[1769956444951,4.06100726,103.19,103.15,9.69461948]
[1769956445548,4.06100726,103.18,103.14,9.6952652]
[1769956445926,4.06100726,103.22,103.14,13.45115182]
[1769956446935,4.06100726,103.18,103.09,9.70015148]
[1769956447135,4.06100726,103.1,103.05,13.45991379]
[1769956447351,4.06100726,103.1,103.05,40.37991379]
[1769956447655,0.28432314,103.09,103.05,40.37991379]
[1769956448243,4.06100726,103.1,103.05,40.37991379]
[1769956448557,0.28432314,103.1,103.06,3.87904739]
[1769956448746,0.28432314,103.1,103.07,26.92]
[1769956449151,9.98384242,103.1,103.07,26.92]
[1769956449340,0.28432314,103.08,103.07,22.25852312]
[1769956449956,3.39277902,103.08,103.04,3.87904739]
[1769956450154,0.28432314,103.07,103.04,3.87904739]
[1769956450357,3.39277902,103.02,102.95,6.28480634]
[1769956450562,4.27527085,103.02,102.86,0.97219521]
[1769956450857,0.45290936,102.95,102.9,1e-08]
[1769956451061,5.36086188,102.93,102.9,1e-08]
[1769956451355,10.16665728,102.95,102.9,4.3774504]
[1769956451545,0.45290936,102.95,102.9,4.3774504]
[1769956452738,5.36086188,103.05,102.92,4.37745039]
[1769956452937,9.70496894,103.04,102.94,4.37745039]
[1769956453137,33.9673913,103.04,102.94,4.37745039]
[1769956453355,14.75142973,103.05,102.94,4.37745039]
[1769956453660,9.70431539,103.05,102.94,4.37745039]
[1769956453860,24.25366088,103.08,102.95,4.66177353]
[1769956454760,9.7002619,103.09,102.95,4.66177353]
[1769956454980,33.94829575,103.1,102.97,4.37745039]
[1769956455156,0.28432314,103.06,102.97,4.37745039]
[1769956455458,4.27527085,103.07,102.97,4.37745039]
[1769956456162,0.28432314,103.06,102.97,4.37745039]
[1769956456339,109.38490098,103.1,102.97,4.37745039]
[1769956456538,60.88829575,103.1,102.97,4.37745039]
[1769956456861,0.28432314,103.09,102.97,4.37745039]
[1769956457064,0.28432314,103.07,102.99,4.37745039]
[1769956459045,9.84469065,103.07,103.01,4.37745039]
[1769956459572,9.70142105,103.08,103.01,4.37745039]
[1769956460450,9.70033357,103.09,103.01,4.37745039]
[1769956460667,33.95098833,103.09,103.01,4.37745039]
[1769956460963,48.4787999,103.14,103.01,4.37745039]
[1769956460964,9.69961401,103.1,103.01,4.37745039]
[1769956461166,5.36086188,103.13,103.03,4.37745039]
[1769956461360,4.27527085,103.1,103.01,4.37745039]
[1769956462161,4.27527085,103.1,102.99,26.94]
[1769956462162,4.27527085,103.08,102.99,31.31745039]
[1769956462552,4.27527085,103.06,102.99,31.31745039]
[1769956462757,0.28432314,103.05,102.99,4.37745039]
[1769956463161,9.70496894,103.04,103.0,4.37745039]
[1769956463554,9.70308558,103.06,103.0,4.37745039]
[1769956463855,33.96079953,103.06,103.0,4.37745039]
[1769956464054,0.28432314,103.05,102.98,14.08777194]
[1769956464373,0.28432314,103.05,102.98,4.37745039]
[1769956464865,58.12,103.21,103.0,4.37745039]
[1769956465073,52.75776866,103.13,103.01,4.37745039]
[1769956465259,86.69551712,103.13,103.03,4.37745039]
[1769956465642,86.69551712,103.13,102.99,4.37745039]
[1769956465869,4.27527085,103.09,102.99,4.37745039]
[1769956466066,0.28432314,103.06,102.99,14.08699176]
[1769956466253,0.28432314,103.06,103.0,4.37745039]
[1769956466452,4.27527085,103.09,103.0,14.08561423]
[1769956466652,4.27527085,103.09,103.01,4.37745039]
[1769956467161,33.95421031,103.08,102.96,48.55995827]
[1769956467466,33.95421031,103.08,102.94,34.00038856]
[1769956467467,4.27527085,103.01,102.94,4.37745039]
[1769956468475,4.27527085,103.02,102.94,4.37745039]
[1769956468656,4.27527085,103.04,102.94,4.37745039]
[1769956469271,4.27527085,103.02,102.92,4.37745039]
[1769956469769,4.27527085,103.02,102.94,4.37745039]
[1769956470153,4.27527085,103.02,102.95,4.37745039]
[1769956470448,33.97068813,103.03,102.95,4.37745039]
[1769956470668,0.14216157,103.02,102.95,4.37745039]
[1769956470854,4.55959399,103.02,102.95,4.37745039]
[1769956471252,4.27527085,102.98,102.9,4.3774504]
[1769956471554,0.28432314,102.97,102.9,4.3774504]
[1769956471969,0.28432314,103.0,102.9,4.3774504]
[1769956472172,4.55959399,103.0,102.9,4.3774504]
[1769956472962,4.55959399,103.0,102.88,34.02021772]
[1769956472963,4.27527085,102.98,102.86,4.37745039]
[1769956473151,34.01030025,102.91,102.86,4.37745039]
[1769956473558,0.28432314,102.9,102.86,4.37745039]
[1769956473758,0.28432314,102.9,102.84,0.1]
[1769956473974,0.28432314,102.9,102.82,4.37745039]
[1769956473975,4.55959399,102.9,102.82,4.37745039]
[1769956474191,1.98019479,102.85,102.64,23.32]
[1769956474414,1.98019479,102.85,102.53,314.7]
[1769956474415,1.98019479,102.82,102.72,14.77901378]
[1769956474682,6.25546564,102.82,102.72,9.73439012]
[1769956474863,1.98009486,102.84,102.72,9.73439012]
[1769956475063,1.98009486,102.86,102.72,61.03239635]
[1769956475366,9.71817298,102.9,102.73,0.97342548]
[1769956475566,34.01360543,102.9,102.76,5.64518502]
[1769956475772,9.71817298,102.9,102.79,4.27527085]
[1769956475980,34.01360543,102.9,102.79,4.27527085]
[1769956476161,34.01360543,102.9,102.8,3.87904739]
[1769956476680,9.71817298,102.9,102.8,3.87904739]
[1769956476974,34.01360543,102.9,102.8,3.87904739]
[1769956477177,1.98255643,102.89,102.74,0.97333073]
[1769956477358,1.98226336,102.84,102.78,9.72882916]
[1769956477565,4.27527085,102.87,102.8,3.96433013]
[1769956477766,0.14216157,102.86,102.8,3.96433013]
[1769956478378,0.14216157,102.87,102.8,3.96433013]
[1769956478758,1.98397181,102.9,102.8,3.96433013]
[1769956478963,1.98397181,102.93,102.8,3.96433013]
[1769956479163,1.98397181,102.91,102.82,3.96433013]
[1769956479387,0.14216157,102.89,102.82,3.96433013]
[1769956479688,1.98397181,102.85,102.76,3.96433013]
[1769956479986,0.14216157,102.82,102.77,3.96433013]
[1769956480384,0.14216157,102.82,102.67,5.23189938]
[1769956480385,4.01863268,102.8,102.67,27.13]
[1769956480582,4.41743242,102.81,102.67,27.13]
[1769956480583,0.28432314,102.78,102.67,27.13]
[1769956480766,0.28432314,102.78,102.7,34.39782363]
[1769956480967,4.16079425,102.78,102.7,10.05507777]
[1769956481172,4.16079425,102.78,102.7,0.3182111]
[1769956481368,3.87647111,102.75,102.7,1e-08]
[1769956481969,3.87647111,102.73,102.6,26.98]
[1769956482167,3.87647111,102.73,102.59,48.735683]
[1769956482168,3.87647111,102.71,102.58,5.05464068]
[1769956482375,3.87647111,102.67,102.59,3.96433013]
[1769956482574,13.00430666,102.71,102.6,3.96433013]
[1769956482766,3.87647111,102.69,102.6,3.96433013]
[1769956482965,3.87647111,102.74,102.63,3.96433013]
[1769956483289,82.70896174,102.77,102.65,3.96433013]
[1769956483290,86.58543285,102.77,102.65,3.96433013]
[1769956483491,9.73046608,102.77,102.65,3.96433013]
[1769956483671,9.72944097,102.79,102.68,3.96433013]
[1769956483871,13.60407482,102.81,102.69,8.23960098]
[1769956484174,9.72478848,102.83,102.72,3.96433013]
[1769956484378,3.87647111,102.83,102.72,3.96433013]
[1769956484568,3.87647111,102.83,102.74,3.96433013]
[1769956485183,13.60280556,102.85,102.74,3.96433013]
[1769956485369,3.87971524,102.84,102.76,4.17549294]
[1769956487280,13.6039302,102.84,102.78,4.17549294]
[1769956487485,13.60242951,102.86,102.78,4.17549294]
[1769956487679,2.56440989,102.87,102.78,4.17549294]
[1769956487985,3.87971524,102.86,102.78,4.17549294]
[1769956488203,4.02187681,102.84,102.78,4.17549294]
[1769956488491,3.87971524,102.84,102.78,4.17549294]
[1769956488689,3.87971524,102.86,102.78,4.17549294]
[1769956488871,3.87971524,102.81,102.73,4.17549294]
[1769956489075,0.28432314,102.83,102.74,4.17549294]
[1769956489274,10.00917306,102.83,102.77,4.17549294]
[1769956489576,10.00917306,102.83,102.69,5.36086188]
[1769956489577,3.87971524,102.86,102.65,162.28970621]
[1769956489772,34.00699572,102.92,102.65,48.99123644]
[1769956489773,3.87971524,102.79,102.65,48.99123644]
[1769956490097,3.87971524,102.78,102.72,9.7351383]
[1769956490298,3.87971524,102.78,102.73,9.73417572]
[1769956490481,3.87971524,102.78,102.74,9.73315634]
[1769956490681,3.87971524,102.78,102.73,9.73402004]
[1769956490997,3.87971524,102.8,102.74,9.73311203]
[1769956491180,3.87971524,102.8,102.73,9.73424757]
[1769956491382,3.87971524,102.78,102.66,58.44177344]
[1769956491585,3.87971524,102.78,102.68,4.17549294]
[1769956493492,34.05000485,102.79,102.67,4.27549294]
[1769956493493,3.87971524,102.76,102.67,4.27549294]
[1769956493691,3.87971524,102.73,102.67,0.1]
[1769956494400,3.87971524,102.71,102.67,0.1]
[1769956494590,3.87971524,102.7,102.67,0.1]
[1769956495101,3.87971524,102.69,102.63,4.17549294]
[1769956495302,3.87971524,102.69,102.6,24.36554829]
[1769956495505,3.87971524,102.65,102.57,13.92493234]
[1769956495798,4.02187681,102.64,102.58,4.17549294]
[1769956495997,4.02187681,102.64,102.54,4.17549294]
[1769956496179,3.87971524,102.62,102.54,4.17549294]
[1769956496387,3.87971524,102.6,102.54,24.3804568]
[1769956496580,3.87971524,102.6,102.55,4.17549294]
[1769956496777,4.16403838,102.61,102.55,4.17549294]
[1769956497003,3.87971524,102.63,102.56,13.92569534]
[1769956497302,13.6206075,102.66,102.57,4.17549294]
[1769956497502,3.87971524,102.61,102.51,4.17549294]
[1769956497680,4.16403838,102.65,102.57,4.17549294]
[1769956497881,4.16403838,102.65,102.58,4.17549294]
[1769956498081,3.87971524,102.66,102.58,4.17549294]
[1769956498319,3.87971524,102.66,102.5,24.38982354]
[1769956498486,3.87971524,102.66,102.49,28.33391604]
[1769956498809,3.87971524,102.62,102.52,4.27527085]
[1769956499107,3.87971524,102.64,102.56,9.75032381]
[1769956499278,3.87971524,102.62,102.53,24.38269547]
[1769956499487,9.74563882,102.61,102.53,24.38269547]
[1769956499688,3.87971524,102.62,102.53,24.38269547]
[1769956500194,3.87971524,102.66,102.56,4.27527085]
[1769956500525,23.38,102.83,102.61,2.77386327]
[1769956500526,3.87971524,102.7,102.61,2.77386327]
[1769956500736,3.87971524,102.7,102.63,2.77386327]
[1769956500895,4.08833316,102.66,102.44,21.90441744]
[1769956501235,5.09017508,102.57,102.46,97.24373369]
[1769956501514,5.09017508,102.57,102.48,9.75800156]
[1769956501692,4.08833316,102.63,102.49,73.97641558]
[1769956501897,24.35010042,102.67,102.49,73.97641558]
[1769956502089,4.08833316,102.66,102.5,48.01604364]
[1769956502296,13.82732809,102.68,102.51,49.85522169]
[1769956502497,4.08833316,102.67,102.51,48.87970711]
[1769956502717,4.08833316,102.67,102.49,24.39223655]
[1769956502718,4.08833316,102.64,102.46,9.75967042]
[1769956502921,4.08833316,102.64,102.41,0.12129011]
[1769956502922,4.08833316,102.59,102.48,34.15300546]
[1769956503094,4.08833316,102.59,102.47,0.33678282]
[1769956503095,4.08833316,102.55,102.47,34.49264886]
[1769956503295,4.08833316,102.58,102.48,0.33678282]
[1769956503494,4.08833316,102.58,102.49,34.48645595]
[1769956503699,4.23049473,102.63,102.52,4.27527085]
[1769956503908,4.08833316,102.63,102.53,0.34308764]
[1769956504103,4.08833316,102.63,102.54,0.34308764]
[1769956504794,4.08833316,102.63,102.53,4.27527085]
[1769956505004,4.08833316,102.63,102.5,5.36086188]
[1769956505005,4.3726563,102.6,102.5,0.33845134]
[1769956505303,4.08833316,102.6,102.43,0.33845134]
[1769956505504,0.14216157,102.52,102.45,24.7390065]
[1769956505722,4.08833316,102.52,102.46,34.15967206]
[1769956506417,4.23049473,102.54,102.46,34.49352002]
[1769956506627,13.83884493,102.56,102.47,0.33384796]
[1769956506935,4.08833316,102.58,102.5,0.32625041]
[1769956507133,4.08833316,102.58,102.45,9.76074406]
[1769956507418,9.74658869,102.6,102.41,0.12129011]
[1769956507419,4.25145836,102.54,102.41,0.12129011]
[1769956507596,5.36086188,102.56,102.44,9.76181179]
[1769956507597,14.14903811,102.51,102.44,9.76181179]
[1769956507795,9.89663745,102.52,102.44,9.76181179]
[1769956507997,14.00404459,102.54,102.44,38.44161212]
[1769956508293,4.5357815,102.53,102.44,34.16634127]
[1769956508496,4.5357815,102.53,102.43,9.76195243]
[1769956508900,4.25145836,102.5,102.41,0.12129011]
[1769956509217,4.25145836,102.5,102.43,9.76271887]
[1769956509403,0.28432314,102.51,102.44,2.20383028]
[1769956509610,0.28432314,102.51,102.45,11.96468923]
[1769956509807,0.14216157,102.54,102.46,2.19636631]
[1769956510026,48.09483097,102.7,102.46,2.19636631]
[1769956510233,87.42975526,102.74,102.5,2.19636631]
[1769956510234,35.331384,102.6,102.5,2.19636631]
[1769956510422,10.96491227,102.6,102.5,2.19636631]
[1769956510931,48.11420303,102.72,102.5,2.19636631]
[1769956510932,48.74266109,102.82,102.57,2.19189978]
[1769956511116,5.090324,102.69,102.57,2.19189978]
[1769956511300,0.73232517,102.68,102.52,2.19189978]
[1769956511500,8.37347897,102.64,102.53,9.75324295]
[1769956511720,4.83053329,102.63,102.53,11.93940883]
[1769956512024,4.83053329,102.63,102.53,34.13635033]
[1769956512221,4.09820812,102.58,102.49,2.18616588]
[1769956512400,4.09820812,102.52,102.46,51.45888721]
[1769956512607,4.09820812,102.54,102.48,24.3938079]
[1769956512806,4.09820812,102.54,102.51,9.75500282]
[1769956513514,4.09820812,102.58,102.52,11.9326251]
[1769956513718,4.09820812,102.55,102.44,24.40339433]
[1769956513917,0.14216157,102.52,102.43,2.17192525]
[1769956514109,4.09820812,102.51,102.44,36.33826652]
[1769956514724,4.09820812,102.55,102.45,2.16518334]
[1769956515007,4.09820812,102.53,102.45,2.16518334]
[1769956515222,4.09820812,102.49,102.41,0.12129011]
[1769956515422,4.24036969,102.45,102.42,9.76371423]
[1769956515613,4.09820812,102.45,102.41,24.53176343]
[1769956516406,4.09820812,102.47,102.41,24.53176343]
[1769956517227,4.09820812,102.49,102.41,26.68363495]
[1769956517622,4.09820812,102.49,102.41,36.44830636]
[1769956517826,4.09820812,102.51,102.42,2.14530039]
[1769956518727,4.24036969,102.5,102.42,2.14530039]
[1769956519530,0.14216157,102.49,102.42,2.14530039]
[1769956519723,4.24036969,102.49,102.43,34.16967684]
[1769956519927,4.09820812,102.49,102.43,34.16967684]
[1769956520124,4.09820812,102.49,102.39,1.08485321]
[1769956520125,4.09820812,102.45,102.39,1.08485321]
[1769956520428,4.09820812,102.44,102.41,9.76400264]
[1769956520738,4.38253126,102.47,102.42,9.76365695]
[1769956521408,4.09820812,102.49,102.42,36.29887103]
[1769956522129,4.83053329,102.5,102.43,2.11972707]
[1769956522328,4.09820812,102.49,102.42,9.76365695]
[1769956522628,34.87875606,102.5,102.42,9.7636925]
[1769956522629,4.38253126,102.48,102.42,9.7636925]
[1769956522830,4.09820812,102.48,102.42,9.7636925]
[1769956523221,4.09820812,102.48,102.42,34.17298755]
[1769956524041,13.85659258,102.48,102.42,61.27298755]
[1769956524329,4.09820812,102.47,102.42,61.27298755]
[1769956526130,0.73232517,102.5,102.43,4.0586251]
[1769956526634,0.73232517,102.53,102.43,4.0586251]
[1769956526938,0.14216157,102.51,102.42,65.33161265]
[1769956527117,0.14216157,102.51,102.43,4.0586251]
[1769956527940,0.28432314,102.49,102.44,9.76181179]
[1769956528136,1.01664831,102.49,102.44,9.76181179]
[1769956528329,1.01664831,102.49,102.44,34.16634127]
[1769956528632,4.83053329,102.5,102.44,38.22496637]
[1769956528837,0.73232517,102.51,102.45,4.0586251]
[1769956529236,24.3817155,102.54,102.45,4.0586251]
[1769956529237,4.09820812,102.54,102.45,4.0586251]
[1769956529424,13.8506385,102.54,102.45,4.0586251]
[1769956529618,0.28432314,102.53,102.45,4.0586251]
[1769956529819,4.09820812,102.54,102.45,4.0586251]
[1769956530118,13.84892237,102.56,102.47,4.0586251]
[1769956530931,4.09820812,102.56,102.47,4.0586251]
[1769956531314,54.08596922,102.62,102.46,136.03400595]
[1769956531315,4.09820812,102.57,102.49,4.0586251]
[1769956531634,0.14216157,102.56,102.49,4.0586251]
[1769956532119,4.24036969,102.56,102.5,38.20496656]
[1769956532922,4.09820812,102.56,102.5,38.20496656]
[1769956533337,4.09820812,102.56,102.5,34.14634146]
[1769956533635,4.09820812,102.55,102.5,34.14634146]
[1769956534138,13.84974716,102.55,102.5,34.14634146]
[1769956534338,4.09820812,102.54,102.45,4.0586251]
[1769956534518,4.09820812,102.52,102.49,9.75695525]
[1769956535044,4.09820812,102.52,102.48,9.75755043]
[1769956535332,4.09820812,102.52,102.47,27.1]
[1769956535333,4.38253126,102.47,102.41,4.0586251]
[1769956535525,4.09820812,102.49,102.42,4.0586251]
[1769956535721,0.28432314,102.48,102.42,4.0586251]
[1769956535938,4.09820812,102.49,102.42,4.0586251]
[1769956536343,9.75579554,102.51,102.44,4.0586251]
[1769956536529,0.28432314,102.5,102.44,4.0586251]
[1769956537035,13.85352314,102.51,102.44,4.0586251]
[1769956537246,0.28432314,102.5,102.44,4.0586251]
[1769956537539,4.09820812,102.51,102.44,4.0586251]
[1769956537745,0.28432314,102.5,102.44,4.0586251]
[1769956537925,4.08048985,102.5,102.44,4.0586251]
[1769956538239,4.08048985,102.5,102.45,9.76085895]
[1769956538434,3.79616671,102.5,102.45,9.76085895]
[1769956538825,13.55253429,102.5,102.45,9.76085895]
[1769956539341,3.79616671,102.5,102.45,34.16300633]
[1769956540627,13.55281307,102.5,102.45,9.76085895]
[1769956541147,4.08048985,102.49,102.43,9.76199499]
[1769956541322,4.08048985,102.49,102.42,3.98162472]
[1769956541842,4.08048985,102.49,102.42,13.74482681]
[1769956542238,4.08048985,102.47,102.42,9.76320209]
[1769956542419,3.79616671,102.49,102.42,38.15412186]
[1769956542619,13.55131254,102.51,102.43,3.98162472]
[1769956542947,37.93917713,102.51,102.43,3.98162472]
[1769956543244,13.55131254,102.51,102.43,3.98162472]
[1769956543452,37.93917713,102.51,102.43,3.98162472]
[1769956543629,0.28432314,102.5,102.43,3.98162472]
[1769956544028,4.08048985,102.5,102.43,3.98162472]
[1769956544547,13.83731083,102.5,102.44,13.48357626]
[1769956544752,13.83731083,102.5,102.44,37.88810574]
[1769956545542,3.79616671,102.5,102.45,3.72176447]
[1769956545766,13.55236779,102.5,102.45,3.72176447]
[1769956545954,4.0565317,102.49,102.43,13.48429582]
[1769956546138,0.28432314,102.48,102.43,13.48429582]
[1769956546651,10.04243081,102.48,102.43,13.48429582]
[1769956547356,13.81369091,102.49,102.43,37.89120785]
[1769956547531,4.0565317,102.46,102.41,27.1]
[1769956548146,4.0565317,102.46,102.43,9.76273741]
[1769956548345,0.28432314,102.47,102.43,9.76273741]
[1769956548654,13.81479317,102.48,102.43,34.16964944]
[1769956549246,13.81479317,102.48,102.43,9.76273741]
[1769956549453,4.34085484,102.47,102.42,3.72176447]
[1769956550052,4.34085484,102.47,102.42,13.48541903]
[1769956550653,4.34085484,102.47,102.42,37.89471408]
[1769956550654,4.0565317,102.47,102.42,37.89471408]
[1769956550841,9.75857295,102.48,102.43,3.72176447]
[1769956551437,4.0565317,102.49,102.43,3.72176447]
[1769956551649,4.0565317,102.5,102.43,3.72176447]
[1769956551858,0.28432314,102.49,102.43,3.72176447]
[1769956552048,4.0565317,102.49,102.43,3.72176447]
[1769956552252,4.0565317,102.49,102.42,9.76365456]
[1769956552450,4.34085484,102.48,102.42,34.17294961]
[1769956552651,9.75895384,102.47,102.42,34.17294961]
[1769956552958,9.75895384,102.47,102.42,37.89471408]
[1769956553555,4.0565317,102.48,102.43,3.72176447]
[1769956553764,24.38978326,102.51,102.43,3.72176447]
[1769956553765,13.81262926,102.5,102.43,3.72176447]
[1769956554764,13.81262926,102.5,102.44,37.88810574]
[1769956555252,4.0565317,102.49,102.44,34.16634127]
[1769956555459,4.0565317,102.49,102.44,37.88810574]
[1769956555661,34.14634146,102.5,102.39,1.08485321]
[1769956555662,4.0565317,102.44,102.39,1.08485321]
[1769956556259,0.28432314,102.45,102.39,1.08485321]
[1769956556260,4.0565317,102.43,102.39,1.08485321]
[1769956556635,0.28432314,102.42,102.39,1.08485321]
[1769956556868,10.04805591,102.42,102.39,1.08485321]
[1769956557253,13.81628179,102.47,102.39,35.26760209]
[1769956557457,13.81628179,102.47,102.4,27.1]
[1769956557636,4.19869327,102.45,102.4,27.1]
[1769956558043,4.0565317,102.43,102.4,27.1]
[1769956558651,13.82007851,102.43,102.4,23.37823553]
[1769956559056,38.22699054,102.43,102.39,1.08485321]
[1769956559250,38.22699054,102.43,102.34,9.87099269]
[1769956559251,2.39192428,102.41,102.34,9.87099269]
[1769956559447,0.28432314,102.38,102.34,0.1]
[1769956559756,2.39192428,102.39,102.34,13.59304532]
[1769956559958,2.39092183,102.42,102.35,3.72176447]
[1769956560161,2.39092183,102.48,102.36,3.72176447]
[1769956560366,2.39092183,102.48,102.38,3.72176447]
[1769956560765,2.39092183,102.48,102.37,31.37527085]
[1769956560766,12.14987567,102.47,102.4,3.72176447]
[1769956561075,12.14154694,102.51,102.4,3.72176447]
[1769956561373,2.38640111,102.5,102.4,3.72176447]
[1769956561848,2.38012682,102.48,102.42,3.72176447]
[1769956562052,2.38012682,102.5,102.42,3.72176447]
[1769956562392,2.38012682,102.5,102.36,167.65056809]
[1769956562393,34.14301042,102.51,102.23,0.1]
[1769956562663,1.02480847,102.21,102.05,83.29250365]
[1769956562975,46.3579756,102.23,102.05,83.29250365]